bitfinex-derivatives/quotes_ETHF0:USTF0_20250205
["timestamp","ask_amount","ask_price","bid_price","bid_amount"]
[1738773575335,3.2078,2746.5,2746.1,0.00546378]
[1738773575536,3.2078,2746.2,2746.1,0.00546378]
[1738773576039,0.00546378,2746.7,2746.1,0.00546378]
[1738773576040,3.2078,2746.5,2746.1,0.00546378]
[1738773576839,0.00546378,2746.7,2746.3,3.2078]
[1738773577534,3.2078,2747.6,2746.6,3.2078]
[1738773577741,3.2078,2747.8,2746.9,3.2078]
[1738773578039,3.2078,2747.8,2746.8,3.2078]
[1738773578236,3.2078,2747.8,2747.0,40.8]
[1738773578737,0.00546378,2747.7,2747.0,40.8]
[1738773580137,3.2078,2747.5,2747.0,40.8]
[1738773580638,3.2078,2747.5,2746.8,3.2078]
[1738773581043,3.2078,2747.2,2746.5,0.23416827]
[1738773581236,3.2078,2747.2,2746.4,3.2078]
[1738773581744,3.2078,2747.2,2746.4,44.0078]
[1738773581934,3.2078,2747.2,2746.7,3.2078]
[1738773582541,3.2078,2746.9,2745.8,1.3441]
[1738773583343,3.2078,2746.3,2745.6,3.2078]
[1738773583737,3.2078,2746.3,2745.4,42.1723]
[1738773583937,3.2078,2746.7,2745.7,3.2078]
[1738773585135,3.2078,2746.7,2746.0,3.2078]
[1738773585538,3.2078,2746.7,2746.1,0.23765633]
[1738773585943,4.4867,2747.1,2746.1,0.23765633]
[1738773586145,4.4867,2747.1,2746.3,3.2078]
[1738773586539,4.4867,2747.1,2746.2,4.64472705]
[1738773586738,4.4867,2747.1,2746.1,0.23765633]
[1738773587138,3.2078,2747.1,2746.3,3.2078]
[1738773587647,3.2078,2747.1,2746.4,4.65817639]
[1738773588438,3.2078,2747.1,2746.5,40.8]
[1738773588749,3.2078,2746.8,2746.1,0.00546378]
[1738773589043,3.2078,2746.5,2746.1,0.00546378]
[1738773589639,1.4126,2746.4,2746.1,0.00546378]
[1738773590547,3.2078,2746.2,2746.1,0.00546378]
[1738773591442,1.3412,2746.7,2746.1,0.00546378]
[1738773591443,4.549,2746.7,2746.1,0.00546378]
[1738773592143,3.2078,2746.4,2746.1,0.00546378]
[1738773593242,3.2078,2746.4,2745.3,3.2078]
[1738773593441,3.2078,2745.9,2745.3,3.2078]
[1738773594244,4.5088,2746.3,2745.3,3.2078]
[1738773594443,0.00546378,2745.9,2745.3,3.21326378]
[1738773594948,0.00546378,2745.9,2745.6,3.2078]
[1738773595550,0.00546378,2745.9,2745.7,40.8]
[1738773597744,0.00546378,2745.9,2745.7,45.8]
[1738773597949,3.2078,2747.2,2746.0,3.83309741]
[1738773598248,3.2078,2747.2,2746.7,3.2078]
[1738773598949,3.2078,2747.7,2746.7,3.2078]
[1738773599146,0.00546378,2747.2,2746.7,3.21326378]
[1738773599850,3.2078,2747.0,2746.7,0.00546378]
[1738773600350,1.2828,2747.1,2746.7,0.00546378]
[1738773600548,3.2078,2747.0,2746.7,0.00546378]
[1738773601051,12.04089741,2747.0,2745.3,3.2078]
[1738773601349,3.2078,2745.7,2745.0,3.2078]
[1738773601854,3.2078,2746.0,2745.0,3.2078]
[1738773602048,1.336,2746.1,2745.0,3.2078]
[1738773602243,0.00546378,2745.8,2745.2,0.00546378]
[1738773602647,0.00546378,2745.8,2745.3,3.2078]
[1738773603348,0.00546378,2745.8,2745.2,0.00546378]
[1738773603550,0.00546378,2745.8,2745.4,3.2078]
[1738773603957,1.3198,2746.8,2745.7,3.2078]
[1738773604343,1.3198,2746.8,2745.8,4.63581637]
[1738773604647,3.2078,2746.3,2745.5,3.2078]
[1738773604853,3.2078,2746.3,2745.3,1.3414]
[1738773605151,0.00546378,2746.1,2745.4,40.8]
[1738773605344,3.2078,2746.0,2745.4,40.8]
[1738773606152,1.3354,2745.9,2745.4,40.8]
[1738773606743,1.3354,2745.9,2745.2,0.00546378]
[1738773606944,3.2078,2745.4,2745.2,0.00546378]
[1738773607145,7.04089741,2745.4,2743.8,3.2078]
[1738773607354,3.2078,2744.8,2743.9,40.8]
[1738773607544,1.3354,2744.7,2743.9,40.8]
[1738773608446,3.2078,2744.5,2744.0,0.00546378]
[1738773610155,0.00546378,2744.6,2744.1,4.65862194]
[1738773610448,0.00546378,2744.6,2744.1,7.86642194]
[1738773610756,3.2078,2745.6,2744.4,3.2078]
[1738773610959,3.2078,2745.6,2744.9,3.2078]
[1738773611256,3.2078,2745.6,2744.5,7.90840998]
[1738773611448,3.2078,2745.6,2744.8,3.2078]
[1738773611651,3.2078,2745.2,2744.3,3.2078]
[1738773611852,3.2078,2744.9,2744.3,3.2078]
[1738773612755,3.2078,2744.9,2744.4,40.8]
[1738773613249,3.2078,2744.9,2744.3,3.2078]
[1738773613449,3.2078,2744.9,2744.0,3.21326378]
[1738773613847,7.04089741,2744.9,2744.1,40.8]
[1738773614047,2.6861,2744.8,2744.1,40.8]
[1738773614348,3.2078,2744.4,2744.0,0.00546378]
[1738773614547,3.2078,2744.1,2744.0,0.00546378]
[1738773615352,3.2078,2744.1,2743.4,3.2078]
[1738773615550,3.2078,2743.8,2743.1,3.2078]
[1738773615856,1.2855,2744.7,2742.5,3.0419]
[1738773615857,3.2078,2743.5,2742.9,0.24784248]
[1738773616051,3.2078,2743.5,2742.8,3.2078]
[1738773616251,1.3475,2743.7,2742.8,3.2078]
[1738773616445,1.3475,2743.7,2742.9,40.8]
[1738773616651,0.00546378,2743.5,2743.0,0.00546378]
[1738773617343,0.00546378,2743.5,2743.2,0.72895]
[1738773617547,0.00546378,2743.5,2743.4,3.2078]
[1738773617748,0.00546378,2743.5,2743.2,3.93674]
[1738773617950,0.00546378,2743.5,2743.2,7.96989865]
[1738773618149,0.00546378,2743.5,2743.2,3.93675]
[1738773618657,0.00546378,2743.5,2743.2,3.2078]
[1738773619560,0.00546378,2743.5,2743.4,3.2078]
[1738773619752,0.00546378,2743.5,2743.0,0.24758812]
[1738773619753,0.00546378,2743.5,2743.0,0.00546378]
[1738773620762,0.00546378,2743.5,2743.2,3.2078]
[1738773620958,0.00546378,2743.5,2743.3,0.72894]
[1738773621258,0.00546378,2743.5,2743.4,3.2078]
[1738773621559,0.00546378,2743.5,2743.0,0.00546378]
[1738773622155,0.00546378,2743.5,2743.2,3.2078]
[1738773623157,0.00546378,2743.5,2743.0,0.24418259]
[1738773623956,0.00546378,2743.5,2743.2,3.2078]
[1738773624362,0.00546378,2743.5,2743.0,0.24418259]
[1738773624563,0.00546378,2743.5,2743.0,0.97319259]
[1738773624762,0.00546378,2743.5,2743.3,3.2078]
[1738773624955,2.6267,2744.6,2743.3,3.2078]
[1738773624956,3.2078,2744.3,2743.5,0.72886]
[1738773625159,3.2078,2744.3,2743.7,3.2078]
[1738773625353,3.2078,2744.5,2743.8,40.8]
[1738773626164,3.2078,2744.2,2743.8,40.8]
[1738773626360,3.2078,2743.9,2742.3,3.2078]
[1738773626556,3.2078,2743.3,2742.3,3.2078]
[1738773626761,1.3215,2743.2,2742.3,3.2078]
[1738773626956,1.3215,2743.2,2742.7,3.2078]
[1738773627657,3.2078,2743.3,2742.7,3.2078]
[1738773627965,2.6898,2743.8,2742.7,3.93689]
[1738773628262,2.6898,2743.8,2743.0,3.94225378]
[1738773628663,3.2078,2744.2,2743.0,3.21326378]
[1738773628862,3.2078,2744.2,2743.1,4.6767834]
[1738773629055,3.2078,2744.2,2743.3,3.2078]
[1738773629467,3.2078,2743.9,2743.0,3.21326378]
[1738773630359,2.7174,2743.8,2743.0,3.21326378]
[1738773631255,3.2078,2743.5,2743.0,0.00546378]
[1738773632363,2.7174,2743.8,2743.0,0.73447378]
[1738773632759,3.2078,2744.2,2743.3,0.72893]
[1738773632965,3.2078,2744.2,2743.2,3.2078]
[1738773633164,3.2078,2744.2,2743.7,0.72883]
[1738773633360,3.2078,2744.2,2743.5,3.2078]
[1738773633660,3.2078,2744.2,2743.4,40.8]
[1738773633861,3.2078,2744.2,2743.5,3.2078]
[1738773634069,3.2078,2744.2,2743.5,3.93667]
[1738773634265,3.2078,2744.2,2743.5,3.2078]
[1738773634465,6.0491,2744.6,2743.6,0.72884]
[1738773634667,6.0491,2744.6,2743.7,0.72883]
[1738773634966,3.2078,2744.9,2743.8,3.93659]
[1738773635261,3.2078,2745.2,2744.1,0.72871]
[1738773635471,3.2078,2745.2,2744.3,0.72867]
[1738773635766,3.2078,2745.2,2744.4,0.72864]
[1738773635966,3.2078,2745.2,2744.5,3.2078]
[1738773636174,3.2078,2745.2,2744.5,7.95950571]
[1738773636467,2.8413,2745.5,2744.6,40.8]
[1738773636657,3.2078,2745.0,2744.6,40.8]
[1738773636860,3.2078,2745.3,2744.8,0.00546378]
[1738773638166,3.2078,2745.0,2744.8,0.00546378]
[1738773638371,3.2078,2745.0,2743.6,1.403]
[1738773638672,3.2078,2744.6,2743.9,3.2078]
[1738773639371,3.2078,2744.3,2743.6,4.6108]
[1738773639569,3.2078,2744.3,2744.0,0.00546378]
[1738773640164,1.46326378,2744.5,2744.0,0.00546378]
[1738773640470,1.46326378,2744.5,2744.0,3.21326378]
[1738773640868,0.00546378,2744.5,2744.3,3.2078]
[1738773641063,0.00546378,2744.5,2744.3,44.0078]
[1738773641268,0.00546378,2744.5,2744.4,0.72864]
[1738773641767,0.00546378,2744.5,2744.4,5.4801788]
[1738773642376,0.00546378,2744.5,2744.3,44.0078]
[1738773642875,0.00546378,2744.5,2744.3,44.73646]
[1738773643078,0.00546378,2744.5,2744.3,44.0078]
[1738773643562,0.00546378,2744.5,2744.3,3.2078]
[1738773644274,0.00546378,2744.5,2744.0,0.00546378]
[1738773644867,3.2078,2746.2,2744.4,3.83309741]
[1738773645072,3.2078,2745.9,2745.3,3.2078]
[1738773645272,3.2078,2746.5,2745.3,3.2078]
[1738773645473,3.2078,2746.1,2745.4,40.8]
[1738773645671,3.2078,2746.1,2745.0,3.2078]
[1738773645868,3.2078,2746.1,2745.2,0.72841]
[1738773646071,3.2078,2746.1,2745.4,3.2078]
[1738773646276,3.2078,2746.1,2745.5,40.8]
[1738773646977,3.2078,2746.4,2745.5,40.8]
[1738773647273,3.2078,2746.4,2745.5,44.0078]
[1738773647676,2.8071,2746.6,2745.8,3.2078]
[1738773647973,3.2078,2746.8,2746.2,0.72815]
[1738773648172,3.2078,2746.8,2746.1,3.2078]
[1738773648173,3.2078,2747.3,2746.3,0.72813]
[1738773648771,3.2078,2747.3,2746.1,3.2078]
[1738773648978,3.2078,2747.3,2746.1,3.93597]
[1738773649174,3.2078,2747.3,2746.1,3.2078]
[1738773649875,3.2078,2747.3,2746.2,0.72816]
[1738773650273,3.2078,2747.3,2746.6,3.2078]
[1738773650773,3.2078,2747.3,2746.7,0.00546378]
[1738773651275,3.2078,2746.8,2746.7,0.00546378]
[1738773651776,3.2078,2747.2,2746.7,0.00546378]
[1738773652570,3.2078,2747.2,2746.8,0.728]
[1738773652771,3.2078,2747.2,2746.7,0.00546378]
[1738773655373,3.2078,2747.6,2746.7,0.00546378]
[1738773655581,3.2078,2748.0,2747.2,3.2078]
[1738773655873,3.2078,2748.0,2747.2,7.04089741]
[1738773656073,3.2078,2748.0,2747.4,0.72785]
[1738773656275,3.2078,2748.4,2747.6,3.2078]
[1738773656468,4.604,2748.7,2747.9,3.2078]
[1738773656667,1.4107,2749.0,2748.5,3.2078]
[1738773656875,3.2078,2749.4,2748.5,3.2078]
[1738773657076,3.2078,2749.4,2748.3,0.7276]
[1738773657375,3.2078,2749.4,2748.7,0.00546378]
[1738773657776,3.2078,2749.1,2748.7,0.00546378]
[1738773661179,3.2078,2749.5,2748.7,0.00546378]
[1738773661880,3.2078,2749.5,2748.8,44.0078]
[1738773662279,3.2078,2750.2,2748.9,4.69839897]
[1738773662474,2.7044,2750.4,2749.5,3.2078]
[1738773662675,3.2078,2750.2,2749.5,3.2078]
[1738773663080,3.2078,2749.9,2749.2,7.04089741]
[1738773663282,3.2078,2749.9,2749.2,3.2078]
[1738773663589,3.2078,2750.1,2748.9,0.72744]
[1738773663993,3.2078,2750.1,2748.9,4.68248927]
[1738773664184,3.2078,2750.1,2749.1,3.2078]
[1738773664388,3.2078,2750.1,2749.4,3.2078]
[1738773664785,3.2078,2750.1,2749.5,4.8069269]
[1738773665090,3.2078,2750.1,2749.5,5.5341969]
[1738773665289,3.2078,2750.4,2749.7,3.93504]
[1738773665491,3.2078,2750.1,2749.6,3.83309741]
[1738773665684,3.2078,2750.6,2749.8,3.2078]
[1738773665995,3.2078,2750.6,2749.9,0.00545375]
[1738773666887,2.9529,2751.0,2749.9,0.00545375]
[1738773666888,3.2078,2750.9,2750.0,4.83362269]
[1738773667286,3.2078,2750.9,2749.9,40.80545375]
[1738773667489,3.2078,2750.2,2749.9,40.80545375]
[1738773667686,3.2078,2750.2,2749.9,0.00545375]
[1738773668187,3.2078,2750.6,2749.9,0.00545375]
[1738773668398,2.9529,2751.0,2749.9,0.00545375]
[1738773668399,3.2078,2750.7,2749.9,0.00545375]
[1738773668586,3.2078,2750.7,2750.1,3.2078]
[1738773669186,3.2078,2750.2,2749.9,0.00545375]
[1738773669687,2.6804,2750.1,2749.9,0.00545375]
[1738773670085,3.2078,2750.2,2749.9,0.00545375]
[1738773670289,3.2078,2750.7,2749.9,0.36945375]
[1738773670491,3.2078,2750.7,2750.0,45.46130446]
[1738773670692,3.2078,2750.7,2750.2,3.2078]
[1738773671088,3.2078,2750.7,2750.3,4.66130446]
[1738773671395,3.2078,2750.4,2749.9,0.00545375]
[1738773671996,3.2078,2750.0,2749.9,0.00545375]
[1738773675803,3.2078,2750.0,2749.9,40.80545375]
[1738773676105,3.2078,2750.0,2749.9,0.00545375]
[1738773677095,3.2078,2750.5,2749.9,0.00545375]
[1738773677402,3.2078,2750.2,2749.9,0.00545375]
[1738773677894,2.7986,2750.1,2749.9,0.00545375]
[1738773679502,7.7986,2750.1,2749.2,0.25508377]
[1738773679700,3.2078,2749.3,2748.7,3.2078]
[1738773679899,3.2078,2749.3,2748.8,40.8]
[1738773680207,3.2078,2749.3,2748.8,45.47720358]
[1738773680397,3.2078,2749.3,2748.8,40.8]
[1738773680798,0.00542031,2749.3,2748.9,4.63587846]
[1738773680995,3.2078,2750.0,2749.0,1.3783]
[1738773681499,3.2078,2750.0,2749.2,7.04089741]
[1738773681900,3.2078,2750.0,2749.3,4.81382204]
[1738773682196,3.2078,2750.0,2749.5,3.2078]
[1738773682392,1.4479,2750.9,2749.9,3.2078]
[1738773682597,3.2078,2750.7,2749.7,3.2078]
[1738773682801,3.2078,2751.0,2750.0,8.5099778]
[1738773683003,3.2078,2751.0,2750.5,3.83309741]
[1738773683299,3.2078,2751.6,2750.5,3.83309741]
[1738773683499,3.2078,2751.6,2750.9,3.2078]
[1738773683900,3.2078,2751.6,2750.7,3.2078]
[1738773684092,3.2078,2751.3,2750.5,0.00545375]
[1738773684597,3.2078,2751.6,2750.9,3.2078]
[1738773685504,3.2078,2751.6,2751.0,4.68939547]
[1738773685701,3.2078,2751.6,2751.0,45.48939547]
[1738773686508,3.2078,2752.0,2751.3,3.2078]
[1738773686997,3.2078,2752.0,2751.0,40.8]
[1738773686998,3.2078,2751.9,2751.0,42.1496]
[1738773687608,3.2078,2751.9,2751.2,3.2078]
[1738773688106,3.2078,2751.9,2751.3,4.7456377]
[1738773688405,3.2078,2751.9,2751.2,3.2078]
[1738773689901,3.2078,2751.9,2751.0,42.1496]
[1738773690110,3.2078,2751.6,2750.9,3.2078]
[1738773690495,3.2078,2751.3,2750.5,0.00545375]
[1738773690708,3.2078,2751.0,2750.5,0.00545375]
[1738773691100,2.7988,2751.2,2750.5,0.00545375]
[1738773691401,3.2078,2751.0,2750.5,0.00545375]
[1738773692306,2.7988,2751.2,2750.5,0.00545375]
[1738773694103,2.7988,2751.2,2750.5,7.04635116]
[1738773694306,3.2078,2751.3,2750.8,3.2078]
[1738773694708,3.2078,2751.3,2750.5,4.56556116]
[1738773694709,3.2078,2751.3,2750.5,7.04635116]
[1738773695008,3.2078,2751.3,2750.6,4.72171595]
[1738773695405,3.2078,2751.3,2750.5,7.04635116]
[1738773695907,3.2078,2751.3,2750.8,3.2078]
[1738773696103,3.2078,2751.6,2750.9,3.83309741]
[1738773696307,4.4678,2752.0,2751.3,3.2078]
[1738773696601,4.4678,2752.0,2751.4,40.8]
[1738773696808,4.4678,2752.0,2751.4,45.61072006]
[1738773696809,3.2078,2752.0,2751.4,45.61072006]
[1738773697002,3.2078,2752.0,2751.4,46.33749006]
[1738773697505,3.2078,2752.3,2751.7,3.83309741]
[1738773697707,1.2884,2752.5,2751.8,3.2078]
[1738773697913,1.2884,2752.5,2751.8,7.89538744]
[1738773698109,1.2884,2752.5,2751.8,4.68758744]
[1738773698311,1.2884,2752.5,2751.8,7.89538744]
[1738773698809,1.3532,2752.8,2751.9,0.72664]
[1738773699004,1.3532,2752.8,2751.8,3.2078]
[1738773699212,1.3532,2752.8,2751.6,0.25579315]
[1738773699213,1.3532,2752.8,2752.1,7.04089741]
[1738773700211,4.561,2752.8,2752.1,3.2078]
[1738773700408,3.2078,2752.3,2752.0,0.00545375]
[1738773700608,1.3698,2752.2,2752.0,0.00545375]
[1738773707310,1.3698,2752.2,2751.4,3.2078]
[1738773707511,3.2078,2752.0,2751.4,3.2078]
[1738773708011,3.2078,2753.2,2752.0,0.72661]
[1738773708319,3.2078,2753.2,2752.1,8.57969502]
[1738773708517,0.00545375,2752.9,2752.3,0.00545375]
[1738773709916,3.2078,2752.8,2752.3,0.00545375]
[1738773711421,0.00545375,2752.9,2752.3,0.00545375]
[1738773711622,0.00545375,2752.9,2752.5,3.2078]
[1738773711822,0.00545375,2752.9,2752.5,3.93429]
[1738773712218,0.00545375,2752.9,2752.6,8.63070384]
[1738773712425,0.00545375,2752.9,2752.6,9.35716384]
[1738773712615,0.00545375,2752.9,2752.6,8.63070384]
[1738773713421,0.00545375,2752.9,2752.8,3.2078]
[1738773713817,0.00545375,2752.9,2752.8,7.90138779]
[1738773714024,0.00545375,2752.9,2752.8,3.2078]
[1738773715327,0.00545375,2752.9,2752.7,3.51047761]
[1738773715328,3.21325375,2752.9,2752.3,0.00545375]
[1738773715726,2.6586,2752.8,2752.3,3.51593136]
[1738773715922,1.38,2752.8,2752.4,4.8058464]
[1738773716319,0.00545375,2752.9,2752.6,3.51047761]
[1738773717621,0.00545375,2752.9,2752.3,3.51593136]
[1738773718123,3.21325375,2752.9,2752.3,3.51593136]
[1738773719924,0.00545375,2752.9,2752.3,3.51593136]
[1738773720127,0.00545375,2752.9,2752.3,0.00545375]
[1738773720428,3.2078,2752.6,2752.3,0.00545375]
[1738773720921,1.32125375,2752.9,2752.3,0.00545375]
[1738773721225,3.2078,2752.8,2752.3,0.00545375]
[1738773721820,0.00545375,2752.9,2752.3,0.00545375]
[1738773721821,3.2078,2752.5,2752.3,0.00545375]
[1738773722227,1.3344,2752.4,2752.3,0.00545375]
[1738773722827,1.3344,2752.4,2751.7,40.8]
[1738773723025,1.3344,2752.4,2751.7,44.31047761]
[1738773723924,1.3344,2752.4,2751.7,40.8]
[1738773724128,1.3344,2752.4,2751.8,0.00545375]
[1738773724726,1.3344,2752.4,2752.0,3.51047761]
[1738773724922,3.2078,2752.8,2752.0,3.51047761]
[1738773725119,3.2078,2752.8,2752.1,7.94403621]
[1738773725521,0.00545375,2752.9,2752.7,3.2078]
[1738773725724,0.00545375,2752.9,2752.7,3.93424]
[1738773725929,1.3193,2753.9,2752.8,4.64088471]
[1738773726121,1.3193,2753.9,2753.2,3.51047761]
[1738773726517,1.3193,2753.9,2752.9,3.51047761]
[1738773726830,1.3193,2753.9,2753.1,3.2078]
[1738773727125,0.00545375,2753.7,2753.1,3.21325375]
[1738773727725,0.00545375,2753.7,2753.2,4.69477539]
[1738773727929,0.00545375,2753.7,2753.1,3.21325375]
[1738773727930,3.21325375,2753.7,2753.1,3.21325375]
[1738773728228,3.21325375,2753.7,2753.1,0.00545375]
[1738773729327,3.21325375,2753.7,2753.2,3.51047761]
[1738773729530,0.00545375,2753.7,2753.3,3.2078]
[1738773730219,0.00545375,2753.7,2753.1,0.00545375]
[1738773731028,0.00545375,2753.7,2753.3,3.2078]
[1738773732125,0.00545375,2753.7,2753.6,3.2078]
[1738773732520,3.2078,2754.8,2753.6,12.96779539]
[1738773732829,3.2078,2754.8,2754.0,3.2078]
[1738773733027,3.2078,2754.5,2753.7,40.8]
[1738773733223,1.2767,2754.4,2753.7,40.8]
[1738773733527,1.3412,2754.3,2753.7,40.8]
[1738773733828,3.2078,2754.5,2753.8,3.51047761]
[1738773734025,3.2078,2754.5,2753.8,8.14027306]
[1738773734427,3.2078,2754.5,2753.3,3.2078]
[1738773734827,3.2078,2754.5,2753.6,3.2078]
[1738773735029,3.2078,2754.2,2753.6,3.2078]
[1738773735229,1.3412,2754.1,2753.6,3.2078]
[1738773735432,2.6179,2754.1,2753.6,3.2078]
[1738773735931,3.2078,2754.5,2753.6,3.2078]
[1738773736135,3.2078,2754.5,2753.7,4.6469956]
[1738773736334,3.2078,2754.5,2753.6,3.2078]
[1738773736826,1.3777,2754.7,2754.2,3.2078]
[1738773737027,1.3777,2754.7,2754.2,6.71827761]
[1738773737329,1.3594,2754.9,2754.5,3.2078]
[1738773737723,1.3594,2754.9,2754.3,4.70873568]
[1738773737724,1.3594,2754.9,2754.2,6.71827761]
[1738773738126,1.3594,2754.9,2754.3,4.70873568]
[1738773738332,3.2078,2755.0,2754.2,6.71827761]
[1738773738732,3.2078,2755.0,2754.3,4.75291847]
[1738773739533,3.2078,2755.0,2754.2,3.2078]
[1738773739831,1.2617,2754.9,2754.2,3.2078]
[1738773740132,4.77217761,2754.9,2753.6,3.77066252]
[1738773740339,3.2078,2754.4,2753.6,3.51047761]
[1738773740537,3.2078,2754.7,2753.8,3.2078]
[1738773740836,3.2078,2754.7,2753.9,3.51047761]
[1738773741129,3.2078,2754.7,2753.8,3.2078]
[1738773741337,3.2078,2754.2,2753.2,3.2078]
[1738773741536,3.2078,2754.2,2753.3,3.51047761]
[1738773741723,3.2078,2754.2,2753.5,3.2078]
[1738773743132,3.2078,2753.9,2753.3,3.51047761]
[1738773743333,3.2078,2754.2,2753.3,3.51047761]
[1738773743534,3.2078,2754.2,2753.4,4.68525696]
[1738773743838,3.2078,2754.2,2753.2,4.479]
[1738773744135,1.2803,2754.1,2753.2,4.479]
[1738773744331,3.2078,2753.9,2753.3,40.8]
[1738773744835,3.2078,2753.9,2753.2,3.2078]
[1738773746638,3.2078,2753.9,2753.1,0.00545375]
[1738773746829,3.2078,2753.5,2753.1,0.00545375]
[1738773747029,4.81907761,2753.4,2753.1,0.00545375]
[1738773747238,1.3086,2753.4,2753.1,0.00545375]
[1738773748447,3.2078,2753.2,2753.1,0.00545375]
[1738773750134,3.2078,2753.5,2753.1,0.00545375]
[1738773750348,3.2078,2754.2,2753.2,3.2078]
[1738773750539,3.2078,2754.2,2753.5,3.2078]
[1738773751732,4.23643761,2754.6,2753.5,3.2078]
[1738773751733,3.2078,2754.5,2753.5,3.2078]
[1738773752645,3.2078,2754.5,2753.6,40.8]
[1738773754346,3.2078,2754.5,2753.8,3.2078]
[1738773754639,3.2078,2754.9,2754.1,3.2078]
[1738773755142,2.6631,2755.1,2754.4,3.2078]
[1738773755639,5.8709,2755.1,2754.1,8.00645228]
[1738773755839,3.2078,2754.8,2754.1,3.2078]
[1738773756748,3.2078,2754.8,2754.2,4.77794534]
[1738773758442,3.2078,2754.7,2753.6,3.2078]
[1738773759942,3.2078,2754.7,2753.7,8.33069321]
[1738773760136,3.2078,2754.7,2754.0,6.71827761]
[1738773760541,5.8709,2755.1,2754.0,6.71827761]
[1738773760847,2.6631,2755.1,2754.3,6.71827761]
[1738773761042,3.2078,2755.0,2754.0,6.71827761]
[1738773761242,3.2078,2754.7,2754.0,3.2078]
[1738773761845,3.2078,2755.0,2754.0,6.71827761]
[1738773762040,2.6631,2755.1,2754.4,3.2078]
[1738773762443,2.6631,2755.1,2754.0,6.71827761]
[1738773762741,2.6631,2755.1,2754.1,4.73224219]
[1738773763149,2.6631,2755.1,2754.3,3.2078]
[1738773764941,3.2078,2754.8,2754.0,3.2078]
[1738773765141,3.2078,2754.8,2754.1,40.8]
[1738773765849,3.2078,2754.8,2754.2,4.79566084]
[1738773766348,2.6631,2755.1,2754.2,4.79566084]
[1738773766548,3.2078,2755.0,2754.4,3.2078]
[1738773766852,3.2078,2755.0,2754.1,44.0078]
[1738773767349,3.2078,2755.0,2754.2,4.66654746]
[1738773770053,3.2078,2755.0,2754.1,44.0078]
[1738773770347,3.2078,2754.7,2753.9,1.1718]
[1738773770548,3.51047761,2754.6,2753.8,3.2078]
[1738773770756,3.2078,2754.3,2753.4,4.502]
[1738773771053,3.2078,2754.0,2753.5,40.8]
[1738773771746,3.2078,2754.0,2753.4,3.2078]
[1738773772454,3.2078,2754.0,2753.4,44.0078]
[1738773773247,3.2078,2754.3,2753.4,44.0078]
[1738773773447,3.2078,2754.3,2753.6,3.51047761]
[1738773773750,3.2078,2754.3,2753.8,3.2078]
[1738773774448,3.2078,2754.3,2753.7,1.2278]
[1738773775353,2.5793,2754.9,2753.9,6.71827761]
[1738773775550,3.2078,2754.7,2753.9,6.71827761]
[1738773776149,3.2078,2754.7,2754.0,4.79011457]
[1738773776347,3.2078,2754.7,2754.0,6.02121457]
[1738773776849,1.303,2754.9,2754.2,6.71827761]
[1738773777049,3.2078,2755.0,2754.2,6.71827761]
[1738773777446,3.2078,2755.0,2754.3,4.62284339]
[1738773777844,3.2078,2755.0,2754.4,40.8]
[1738773778249,3.2078,2754.7,2753.7,1.2278]
[1738773778451,3.2078,2754.7,2753.9,3.51047761]
[1738773778652,3.2078,2754.7,2753.9,44.31047761]
[1738773778950,3.2078,2754.7,2753.9,40.8]
[1738773779147,3.2078,2754.7,2754.0,3.2078]
[1738773780556,3.2078,2755.0,2754.3,3.2078]
[1738773781049,3.2078,2755.3,2754.6,3.2078]
[1738773781250,2.5307,2755.4,2754.6,3.2078]
[1738773782044,3.2078,2755.3,2754.4,0.00545375]
[1738773782449,3.2078,2755.0,2754.4,0.00545375]
[1738773784246,3.2078,2755.3,2754.5,4.77988799]
[1738773784452,3.2078,2755.3,2754.6,3.2078]
[1738773784652,3.2078,2755.3,2754.8,3.51047761]
[1738773785158,2.5307,2755.4,2754.8,3.51047761]
[1738773785355,3.2078,2756.1,2755.3,3.2078]
[1738773785554,5.6934,2756.6,2755.4,3.51047761]
[1738773785753,5.6934,2756.6,2755.5,40.8]
[1738773785754,3.2078,2756.2,2755.5,40.8]
[1738773786053,3.2078,2756.2,2755.7,0.00544326]
[1738773786253,3.2078,2756.5,2755.7,0.00544326]
[1738773787757,3.2078,2756.2,2755.7,0.00544326]
[1738773789456,3.2078,2756.2,2755.7,3.51592087]
[1738773790058,3.2078,2756.2,2755.8,4.67949183]
[1738773790351,2.4856,2756.6,2755.8,4.67949183]
[1738773790651,1.2462,2756.6,2756.0,3.51047761]
[1738773790856,4.4726,2757.2,2756.3,3.51047761]
[1738773791048,4.4726,2757.2,2756.3,6.71827761]
[1738773791949,3.2078,2756.9,2756.3,3.2078]
[1738773792455,3.2078,2756.9,2755.9,3.2078]
[1738773792653,3.2078,2756.6,2755.9,3.2078]
[1738773792855,2.4216,2756.5,2755.9,3.2078]
[1738773794153,3.2078,2756.0,2755.7,0.00544326]
[1738773794558,3.2078,2756.0,2754.8,3.2078]
[1738773794763,3.2078,2755.4,2755.0,3.51047761]
[1738773795459,3.2078,2755.4,2754.7,3.51047761]
[1738773795660,3.2078,2755.4,2754.9,0.00544326]
[1738773796159,3.2078,2755.4,2755.0,3.51047761]
[1738773796361,0.0054083,2755.5,2755.3,3.51047761]
[1738773796863,0.0054083,2755.5,2755.4,3.2078]
[1738773797655,0.0054083,2755.5,2755.4,7.88089677]
[1738773798259,0.0054083,2755.5,2755.4,53.68089677]
[1738773800066,0.0054083,2755.5,2755.4,48.68089677]
[1738773801465,0.0054083,2755.5,2755.4,54.40662677]
[1738773801659,3.2078,2756.1,2755.4,53.68089677]
[1738773801963,3.2078,2756.6,2755.9,6.71827761]
[1738773802368,3.2078,2756.6,2756.2,3.51047761]
[1738773802763,3.2078,2757.2,2756.2,3.51047761]
[1738773803066,3.2078,2756.9,2755.9,6.71827761]
[1738773803369,3.2078,2756.9,2756.4,0.00544326]
[1738773803664,3.2078,2756.6,2756.4,0.00544326]
[1738773803863,2.4255,2756.5,2756.4,0.00544326]